Cogmind - Beta 14 @@@ ROGUE MODE // 2024.12.17 @ 00:37:32 Player: harambe Result: Destroyed by B-75 Beast with Heavy Plasma Cannon Performance ------------- Evolutions (4) 2000 Regions Visited (10) 2000 Robots Destroyed (28) 140 Value Destroyed (1156) 1156 Prototype IDs (28) 560 Alien Tech Used (0) 0 Bonus (900) 900 TOTAL SCORE: 6756 Bonus ------- High Alert Combat Kills 13 Follower Combat Kills 587 Aligned with FarCom 300 Cogmind --------- Core Integrity 0/850 Matter 300/300 Energy 34/100 System Corruption 15% Temperature Cool (12) Movement Core (50) Location -6/Extension Parts ------- > --- POWER (2) -------- (None) > --- PROPULSION (5) --- (None) > --- UTILITY (6) ------ (None) > --- WEAPON (2) ------- (None) > --- INVENTORY (5) ---- Heavy EM Shotgun Heavy Laser Improved Light Cannon Greatsword Peak State ------------ > --- POWER ------------ Improved Ion Engine Light Antimatter Reactor > --- PROPULSION ------- Flexi-carbon Leg Xenon Bombardment Thruster Xenon Bombardment Thruster Xenon Bombardment Thruster Cooled VTOL Module > --- UTILITY ---------- Huge Storage Unit Advanced Visual Processing Unit Improved Melee Analysis Suite Makeshift ECM Suite > --- WEAPON ----------- Longsword +1 > --- INVENTORY -------- Cooled VTOL Module Cooled VTOL Module Advanced Heat Sink Large Storage Unit High-capacity Matter Pod Advanced Signal Interpreter Heavy EM Shotgun Heavy Laser Proton Cannon Gauss Rifle Flak Gun Flak Gun Improved Light Cannon Assault Cannon Heavy Flak Cannon Shock Bomb Launcher Greatsword [Rating: 56] Favorites ----------- Power Ion Engine Engine Ion Engine Power Core Light Nuclear Core Reactor Light Antimatter Reactor Propulsion Light Treads Treads Light Treads Leg Aluminum Leg Wheel Wheel Flight Unit Xenon Bombardment Thruster Utility Advanced Visual Processing Unit Device Seismic Detector Storage Huge Storage Unit Processor Advanced Visual Processing Unit Hackware Hacking Suite Protection Light Armor Plating Weapon Medium Laser Energy Gun Medium Laser Ballistic Gun Heavy Assault Rifle Slashing Weapon Longsword +1 Build | -11 -10 -10 -10 -9 -8 -7 -7 -7 -6 -6 ------- Run | Yrd Mat Min Exi Min Mat Fac Low Low Fac Ext Slots Evolved 8 | . . . . . 4 2 . . 2 . Power 1 | . . . . . . . . . 1 . Propulsion 3 | . . . . . 2 . . . 1 . Utility 4 | . . . . . 2 2 . . . . Weapon . | . . . . . . . . . . . Parts Attached 66 | 1 1 . . 1 23 7 8 . 3 22 Power 7 | . . . . . 2 . 1 . 1 3 Engine 4 | . . . . . . . 1 . 1 2 Core 2 | . . . . . 2 . . . . . Reactor 1 | . . . . . . . . . . 1 Propulsion 36 | . . . . 1 10 3 4 . 1 17 Treads 15 | . . . . . 5 . 1 . 1 8 Leg 4 | . . . . 1 2 . . . . 1 Wheel 11 | . . . . . 3 2 3 . . 3 Hover . | . . . . . . . . . . . Flight 6 | . . . . . . 1 . . . 5 Utility 14 | 1 1 . . . 7 3 1 . . 1 Device 3 | 1 . . . . . 1 1 . . . Storage 2 | . 1 . . . 1 . . . . . Processor 4 | . . . . . 1 2 . . . 1 Hackware 1 | . . . . . 1 . . . . . Protection 4 | . . . . . 4 . . . . . Artifact . | . . . . . . . . . . . Weapon 9 | . . . . . 4 1 2 . 1 1 Energy Gun 4 | . . . . . 1 1 1 . 1 . Energy Cannon . | . . . . . . . . . . . Ballistic Gun 2 | . . . . . 2 . . . . . Ballistic Cannon . | . . . . . . . . . . . Launcher . | . . . . . . . . . . . Special Weapon . | . . . . . . . . . . . Impact Weapon . | . . . . . . . . . . . Slashing Weapon 3 | . . . . . 1 . 1 . . 1 Piercing Weapon . | . . . . . . . . . . . Special Melee Weapon . | . . . . . . . . . . . Unidentified Prototypes 2 | . . . . . . 2 . . . . Corrupted Parts 1 | . . . . . . . . . . 1 System Corruption 10 | . . . . . . . . . . 10 Parts Lost 23 | . . . . . 3 . . . . 20 Power 4 | . . . . . . . . . . 4 Propulsion 14 | . . . . . 2 . . . . 12 Utility 4 | . . . . . 1 . . . . 3 Weapon 1 | . . . . . . . . . . 1 Highest Loss Streak 18 | . . . . . 2 . . . . 18 To Critical Strikes . | . . . . . . . . . . . Average Slot Usage (%) 99 | . 100 100 100 100 99 98 100 100 100 98 Engine 9 | . 14 14 14 14 4 . 4 7 13 12 Core 1 | . . . . . 4 7 2 . . . Treads 11 | . . . . . 18 16 10 7 13 22 Leg 9 | . 28 28 28 28 . . . . . . Wheel 10 | . . . . . 16 12 20 23 20 9 Device 8 | . 14 14 14 14 6 4 7 7 6 6 Storage 9 | . 14 14 14 14 9 7 7 7 6 6 Processor 9 | . . . . . 8 17 15 15 13 19 Hackware 3 | . . . . . 2 7 7 7 6 5 Protection 3 | . . . . . 9 7 7 7 6 . Energy Gun 9 | . 14 14 14 14 8 7 6 7 6 5 Ballistic Gun 8 | . 14 14 14 14 9 7 7 7 6 . Slashing Weapon 1 | . . . . . . . . . . 5 Peak Build Rating 56 | 7 8 8 9 13 34 32 36 34 41 56 Average Rating 27 | 6 7 8 8 12 22 29 33 34 40 51 On Entrance 19 | 6 7 8 8 9 13 25 30 34 34 41 Naked Turns 6 | . . . . . . . . . . 6 Heaviest Build 115 | 15 30 30 30 30 94 97 107 107 115 115 Greatest Support 100 | 20 20 20 20 30 60 60 32 32 32 100 Greatest Overweight (x) 9 | . 1 1 1 1 9 3 4 3 3 5 Average Overweight (x) 2 | . . 1 1 . 3 2 3 3 3 2 Largest Inventory Capacity 25 | 8 15 15 15 15 25 25 25 25 25 25 Average Capacity 21 | 8 13 15 15 15 23 25 25 25 25 24 Most Carried 25 | 8 12 12 15 15 25 25 25 25 25 25 Average Carried 20 | 6 10 12 13 14 22 24 25 25 24 24 Final Capacity 25 | 8 15 15 15 15 25 25 25 25 25 5 Final Carried 25 | 8 12 12 15 15 25 25 25 25 25 5 Class Distribution -------------------- 61% | Scavenger-Mutant 38% | Mutant Dominant Class ---------------- Mutant | -10/Materials Mutant | -10/Mines Mutant | -10/Exiles Mutant | -9/Mines Scavenger-Mutant | -8/Materials Scavenger-Mutant | -7/Factory Scavenger-Mutant | -7/Lower Caves Scavenger-Mutant | -7/Lower Caves Scavenger-Mutant | -6/Factory Scavenger-Mutant | -6/Extension Resources | -11 -10 -10 -10 -9 -8 -7 -7 -7 -6 -6 ----------- Run | Yrd Mat Min Exi Min Mat Fac Low Low Fac Ext Matter Collected 1129 | 183 . . 43 105 338 30 141 6 21 262 Remotely . | . . . . . . . . . . . Salvage Created 1584 | 13 . . . 95 684 . 149 . 21 622 Parts 57 | 4 . . . 3 25 . 5 . 2 18 Haulers Intercepted . | . . . . . . . . . . . Recyclers Shooed 1 | 1 . . . . . . . . . . Parts Field Recycled . | . . . . . . . . . . . Retrieved Matter . | . . . . . . . . . . . Parts Self-Destructed 7 | . . . . . . . 3 4 . . Prevented . | . . . . . . . . . . . Kills | -11 -10 -10 -10 -9 -8 -7 -7 -7 -6 -6 ------- Run | Yrd Mat Min Exi Min Mat Fac Low Low Fac Ext Combat Hostiles Destroyed 29 | . . . . 7 11 . 3 . . 8 Melee 11 | . . . . . 3 . 1 . . 7 Guns 18 | . . . . 7 8 . 2 . . 1 Classes Destroyed 10 | 1 . . . 2 5 . 1 . 1 . Tunneler 1 | 1 . . . . . . . . . . Recycler 2 | . . . . . 1 . . . . 1 Operator 1 | . . . . . . . . . 1 . Swarmer 2 | . . . . 2 . . . . . . Grunt 12 | . . . . . 4 . 2 . . 6 Duelist 1 | . . . . . 1 . . . . . Sentry 6 | . . . . . 5 . . . . 1 Hunter 2 | . . . . . 1 . . . . 1 Assembled 5 | . . . . 5 . . . . . . Mutant 1 | . . . . . . . 1 . . . Best Kill Streak 4 | 1 . . . 2 4 . 2 . 1 2 Combat Bots Only 3 | . . . . 2 3 . 2 . . 2 Max Kills in Single Turn 1 | 1 . . . 1 1 . 1 . 1 1 Gunslinging . | . . . . . . . . . . . Exploded . | . . . . . . . . . . . Melee 1 | . . . . . 1 . 1 . . 1 Uniques/NPCs Destroyed . | . . . . . . . . . . . Combat | -11 -10 -10 -10 -9 -8 -7 -7 -7 -6 -6 -------- Run | Yrd Mat Min Exi Min Mat Fac Low Low Fac Ext Hostile Shots Fired 455 | . . . . 14 84 . 11 18 1 327 Missed 161 | . . . . 3 18 . 2 10 1 127 Damage Taken 4348 | . 31 . . 222 1061 . 148 57 . 2829 Core 1223 | . . . . 108 182 . 70 11 . 852 Absorbed by Shields . | . . . . . . . . . . . Regen/Repaired (Parts) 36 | . . . . . 36 . . . . . Core Remaining (%) 77 | 100 . . . 56 66 . . 88 . . Volleys Fired 81 | 3 . . . 19 41 . 7 2 6 3 Largest 2 | 2 . . . 2 2 . 2 2 2 2 Hottest 98 | 70 . . . 70 73 . 79 79 98 98 Shots Fired 159 | 5 . . . 38 82 . 12 4 12 6 Gun 159 | 5 . . . 38 82 . 12 4 12 6 Cannon . | . . . . . . . . . . . Launcher . | . . . . . . . . . . . Special . | . . . . . . . . . . . Kinetic 78 | 2 . . . 19 41 . 7 2 6 1 Thermal 81 | 3 . . . 19 41 . 5 2 6 5 Explosive . | . . . . . . . . . . . Electromagnetic . | . . . . . . . . . . . Robot Hit Streak 16 | 3 . . . 8 16 . 5 3 4 5 Robot Miss Streak 4 | 2 . . . 4 3 . 2 1 2 1 Penetration Max . | . . . . . . . . . . . Secondary Targets 2 | . . . . 1 1 . . . . . Max Gunslinging Chain 1 | . . . . 1 1 . . . . . Shots Hit Robots 149 | 3 . . . 19 74 . 13 3 7 30 Core Hits 56 | 1 . . . 11 23 . 6 2 3 10 Critical Kills . | . . . . . . . . . . . Critical Parts Destroyed 3 | . . . . . 3 . . . . . Critical Strikes 16 | 1 . . . 2 8 . 1 . . 4 Burn 5 | 1 . . . 2 2 . . . . . Destroy 3 | . . . . . 3 . . . . . Sever 8 | . . . . . 3 . 1 . . 4 Melee Attacks 43 | . . . . . 10 . 6 . . 27 Impact . | . . . . . . . . . . . Slashing 43 | . . . . . 10 . 6 . . 27 Piercing . | . . . . . . . . . . . Sneak Attacks 4 | . . . . . 1 . . . . 3 Combat Hostiles 1 | . . . . . . . . . . 1 Follow-up Attacks . | . . . . . . . . . . . Damage Inflicted 3529 | 36 . . . 232 1257 . 370 41 121 1472 Guns 1451 | 36 . . . 231 818 . 126 41 121 78 Cannons . | . . . . . . . . . . . Explosions . | . . . . . . . . . . . Melee 2077 | . . . . . 439 . 244 . . 1394 Ramming 1 | . . . . 1 . . . . . . Kinetic 639 | 10 . . . 72 397 . 64 27 56 13 Thermal 812 | 26 . . . 159 421 . 62 14 65 65 Explosive . | . . . . . . . . . . . Electromagnetic . | . . . . . . . . . . . Impact . | . . . . . . . . . . . Slashing 2077 | . . . . . 439 . 244 . . 1394 Piercing . | . . . . . . . . . . . Highest Corruption 15 | . . . . . . . . . 5 15 Average Corruption 9 | . . . . . . . . . 5 10 Corruption Purged . | . . . . . . . . . . . Corruption Blocked . | . . . . . . . . . . . Effects 33 | . . . . . . . . . 5 28 Message Errors 8 | . . . . . . . . . 2 6 Matter Fused 8 | . . . . . . . . . 1 7 Heat Flow Errors 2 | . . . . . . . . . 1 1 Energy Discharges 2 | . . . . . . . . . . 2 Parts Rejected 1 | . . . . . . . . . . 1 Data Loss (minor) 7 | . . . . . . . . . . 7 Data Loss (major) 2 | . . . . . . . . . 1 1 Misfires 2 | . . . . . . . . . . 2 Alerts 1 | . . . . . . . . . . 1 Overload Shots . | . . . . . . . . . . . Overflow Damage 202 | . . . . . 66 . 17 . . 119 Projectiles . | . . . . . . . . . . . Explosions . | . . . . . . . . . . . Melee 202 | . . . . . 66 . 17 . . 119 Knockbacks . | . . . . . . . . . . . Impact . | . . . . . . . . . . . Kinetic . | . . . . . . . . . . . Secondary . | . . . . . . . . . . . Self-Inflicted Damage . | . . . . . . . . . . . Shots . | . . . . . . . . . . . Rammed . | . . . . . . . . . . . Targets Rammed 1 | . . . . 1 . . . . . . Kicked 1 | . . . . 1 . . . . . . Crushed . | . . . . . . . . . . . Highest Temperature 458 | 28 . . . 94 55 . 45 24 458 150 Average Temperature 48 | 13 . . . 24 28 . 14 17 181 35 Received Heat Transfer 1174 | . . . . 40 297 . 36 12 . 789 Effects 2 | . . . . . . . . . 2 . Shutdowns 2 | . . . . . . . . . 2 . Siege Activations . | . . . . . . . . . . . Robots Corrupted . | . . . . . . . . . . . Combat Hostiles . | . . . . . . . . . . . Parts Fried . | . . . . . . . . . . . Impact Corruptions . | . . . . . . . . . . . Robots Melted . | . . . . . . . . . . . Combat Hostiles . | . . . . . . . . . . . Parts Melted 7 | 2 . . . . 4 . . . 1 . Heat Transferred 2631 | 148 . . . 629 1369 . 148 37 150 150 Parts Sabotaged . | . . . . . . . . . . . Parts Stolen . | . . . . . . . . . . . Parts Stripped . | . . . . . . . . . . . Power Chain Reactions . | . . . . . . . . . . . Alert | -11 -10 -10 -10 -9 -8 -7 -7 -7 -6 -6 ------- Run | Yrd Mat Min Exi Min Mat Fac Low Low Fac Ext Peak Influence 459 | 5 33 12 . 55 209 33 . . 82 459 Initial 39 | . 3 12 . . . 33 . . 16 39 Average 106 | 3 15 12 . 38 70 33 . . 52 245 Maximum Alert Level 2 | . . . . . 1 . . . . 2 Low Security (%) 80 | 100 100 100 . 100 99 100 . . 100 33 Level 1 18 | . . . . . . . . . . 64 Level 2 . | . . . . . . . . . . 2 Level 3 . | . . . . . . . . . . . Level 4 . | . . . . . . . . . . . Level 5 . | . . . . . . . . . . . High Security . | . . . . . . . . . . . Max Security . | . . . . . . . . . . . Squads Dispatched 9 | . . . . . 1 . . . 3 5 Investigation 4 | . . . . . . . . . 1 3 Extermination 1 | . . . . . . . . . 1 . Reinforcement 4 | . . . . . 1 . . . 1 2 Assault . | . . . . . . . . . . . Garrison . | . . . . . . . . . . . Intercept . | . . . . . . . . . . . Searches Triggered . | . . . . . . . . . . . Construction Impeded 2 | . . . . . 1 . . . . 1 Haulers Reinforced . | . . . . . . . . . . . Active Scanning Responses . | . . . . . . . . . . . Cargo Convoy Interrupts . | . . . . . . . . . . . Stealth | -11 -10 -10 -10 -9 -8 -7 -7 -7 -6 -6 --------- Run | Yrd Mat Min Exi Min Mat Fac Low Low Fac Ext Distress Signals 5 | . . . . . 3 . . . . 2 Communications Jammed . | . . . . . . . . . . . Distress Signals . | . . . . . . . . . . . Times Spotted 73 | . 2 . . 10 20 . 6 1 3 31 Peak Tracking Total 7 | . 1 . . 2 5 . 3 1 1 7 Tactical Retreats 5 | . . . . 1 1 . 1 . . 2 Traps | -11 -10 -10 -10 -9 -8 -7 -7 -7 -6 -6 ------- Run | Yrd Mat Min Exi Min Mat Fac Low Low Fac Ext Traps Triggered 4 | . 1 . . . . . . . 2 1 Indirectly . | . . . . . . . . . . . Trap Hack Attempts . | . . . . . . . . . . . Triggered . | . . . . . . . . . . . Disarmed . | . . . . . . . . . . . Reprogrammed . | . . . . . . . . . . . Reused . | . . . . . . . . . . . Traps Extracted . | . . . . . . . . . . . Installed . | . . . . . . . . . . . Triggered . | . . . . . . . . . . . Machines | -11 -10 -10 -10 -9 -8 -7 -7 -7 -6 -6 ---------- Run | Yrd Mat Min Exi Min Mat Fac Low Low Fac Ext Machines Disabled 2 | . . . . . . . 1 . 1 . Max in Single Turn 1 | . . . . . . . 1 . 1 . Machines Repaired . | . . . . . . . . . . . Machines Dismantled . | . . . . . . . . . . . Machines Sabotaged . | . . . . . . . . . . . Overloaded Fab Kills . | . . . . . . . . . . . Hacking | -11 -10 -10 -10 -9 -8 -7 -7 -7 -6 -6 --------- Run | Yrd Mat Min Exi Min Mat Fac Low Low Fac Ext Machines Accessed 16 | . . . 1 . 7 . . . 1 7 Terminals 13 | . . . . . 6 . . . . 7 Fabricators . | . . . . . . . . . . . Repair Stations 1 | . . . . . 1 . . . . . Recycling Units . | . . . . . . . . . . . Scanalyzers 1 | . . . . . . . . . 1 . Garrison Access . | . . . . . . . . . . . Total Hacks 40 | . . . 1 . 20 . . . 3 16 Successful 20 | . . . 1 . 11 . . . 2 6 Failed 19 | . . . . . 8 . . . 1 10 Catastrophic 2 | . . . . . 1 . . . . 1 Database Lockouts 1 | . . . . . 1 . . . . . Manual 18 | . . . 1 . 12 . . . . 5 Terminals 33 | . . . . . 17 . . . . 16 Fabricators . | . . . . . . . . . . . Repair Stations 3 | . . . . . 3 . . . . . Recycling Units . | . . . . . . . . . . . Scanalyzers 3 | . . . . . . . . . 3 . Garrison Access . | . . . . . . . . . . . Terminal Hacks 13 | . . . 1 . 6 . . . . 6 Record 2 | . . . . . . . . . . 2 Robot Analysis 3 | . . . . . 3 . . . . . Prototype ID Bank 1 | . . . . . 1 . . . . . Open Door 1 | . . . . . . . . . . 1 Locate Traps 2 | . . . . . 1 . . . . 1 Surveillance Status 1 | . . . . . . . . . . 1 Recall Investigation 1 | . . . . . . . . . . 1 Zone Layout 1 | . . . . . 1 . . . . . Derelict Proto ID Bank 1 | . . . 1 . . . . . . . Fabricator Hacks . | . . . . . . . . . . . Repair Station Hacks 3 | . . . . . 3 . . . . . Scan Component 2 | . . . . . 2 . . . . . Repair 1 | . . . . . 1 . . . . . Recycling Unit Hacks . | . . . . . . . . . . . Scanalyzer 2 | . . . . . . . . . 2 . Insert Component 1 | . . . . . . . . . 1 . Analyze 1 | . . . . . . . . . 1 . Garrison Access Hacks . | . . . . . . . . . . . Unauthorized Hacks 2 | . . . . . 2 . . . . . Terminals 2 | . . . . . 2 . . . . . Botnet 2 | . . . . . 2 . . . . . Fabricators . | . . . . . . . . . . . Repair Stations . | . . . . . . . . . . . Recycling Units . | . . . . . . . . . . . Scanalyzers . | . . . . . . . . . . . Garrison Access . | . . . . . . . . . . . Data Cores Recovered . | . . . . . . . . . . . Used . | . . . . . . . . . . . Hacking Detections 8 | . . . . . 2 . . . . 6 Full Trace Events 3 | . . . . . 1 . . . . 2 Feedback Events . | . . . . . . . . . . . Feedback Blocked . | . . . . . . . . . . . Robot Schematics Acquired . | . . . . . . . . . . . Robots Built . | . . . . . . . . . . . Authchips . | . . . . . . . . . . . Time . | . . . . . . . . . . . Total Robot Build Rating . | . . . . . . . . . . . Part Schematics Acquired 1 | . . . . . . . . . 1 . Parts Built . | . . . . . . . . . . . Authchips . | . . . . . . . . . . . Time . | . . . . . . . . . . . Total Part Build Rating . | . . . . . . . . . . . Parts Repaired 1 | . . . . . 1 . . . . . Time 26 | . . . . . 26 . . . . . Parts Recycled . | . . . . . . . . . . . Recycled Matter . | . . . . . . . . . . . Retrieved Matter . | . . . . . . . . . . . Retrieved Components . | . . . . . . . . . . . Parts Scanalyzed 1 | . . . . . . . . . 1 . Part Schematics Acquired 1 | . . . . . . . . . 1 . Parts Damaged 1 | . . . . . . . . . 1 . Bothacking | -11 -10 -10 -10 -9 -8 -7 -7 -7 -6 -6 ------------ Run | Yrd Mat Min Exi Min Mat Fac Low Low Fac Ext Used RIF Installer . | . . . . . . . . . . . Robots Hacked . | . . . . . . . . . . . Non-combat . | . . . . . . . . . . . Combat . | . . . . . . . . . . . Robot Hacks Applied . | . . . . . . . . . . . Relay Couplers Released . | . . . . . . . . . . . Fabnet Peak Effective % . | . . . . . . . . . . . Robots Rewired 8 | . . . . . . . 4 . . 4 Allies Hacked . | . . . . . . . . . . . Hacks Repelled . | . . . . . . . . . . . Allies | -11 -10 -10 -10 -9 -8 -7 -7 -7 -6 -6 -------- Run | Yrd Mat Min Exi Min Mat Fac Low Low Fac Ext Total Allies 10 | . . . . . . . 4 . . 6 Largest Group 7 | . . . . . . . 4 4 4 7 Highest-Rated Group 170 | . . . . . . . 118 118 118 170 Highest-Rated Ally 31 | . . . . . . . 31 31 31 31 Total Orders . | . . . . . . . . . . . Ally Attacks 131 | . . . . . . . 3 5 15 108 Total Damage 2237 | . . . . . . . 40 63 186 1948 Kills 16 | . . . . . . . 1 1 1 13 Allies Corrupted . | . . . . . . . . . . . Allies Melted . | . . . . . . . . . . . Intel | -11 -10 -10 -10 -9 -8 -7 -7 -7 -6 -6 ------- Run | Yrd Mat Min Exi Min Mat Fac Low Low Fac Ext Robot Analysis Total 3 | . . . . . 3 . . . . . Derelict Logs Recovered 6 | . . . . 2 . . 2 2 . . Drone Launches . | . . . . . . . . . . . Drone Recoveries . | . . . . . . . . . . . Exploration | -11 -10 -10 -10 -9 -8 -7 -7 -7 -6 -6 ------------- Run | Yrd Mat Min Exi Min Mat Fac Low Low Fac Ext Turns Passed 4648 | 32 162 166 667 479 947 153 561 249 307 925 Spaces Moved 2685 | 18 90 88 349 330 493 91 382 188 217 439 Core 12 | . . . . . . . . . . 12 Treads 225 | . . . . . 40 12 . . . 173 Legs 875 | 18 90 88 349 330 . . . . . . Wheels 1570 | . . . . . 453 79 382 188 217 251 Hover . | . . . . . . . . . . . Flight 3 | . . . . . . . . . . 3 Fastest Speed 50 | 120 120 190 190 120 95 135 128 128 128 50 Average Speed 149 | 120 174 190 190 125 140 148 130 128 128 172 Slowest Speed 400 | 120 190 190 190 190 240 240 145 128 128 400 Overloaded Moves . | . . . . . . . . . . . Propulsion Burnouts . | . . . . . . . . . . . Robots Hopped . | . . . . . . . . . . . Cave-ins Triggered . | . . . . . . . . . . . Exploration Rate (%) 34 | 2 18 28 65 71 47 3 59 24 9 58 Regions Visited 10 Branch Regions 6 Pre-discovered Areas 4 | . . . . 2 . . 1 1 . . Known Exits Taken . | . . . . . . . . . . . Unknown Exits Taken 10 | 1 1 1 1 1 1 1 1 1 1 . Scrap Searched 5 | . . . . 2 . . 2 1 . . Spaces Dug . | . . . . . . . . . . . Terrain Destroyed . | . . . . . . . . . . . Melee . | . . . . . . . . . . . Projectile . | . . . . . . . . . . . AOE . | . . . . . . . . . . . Terrain Rammed . | . . . . . . . . . . . Walls Destroyed . | . . . . . . . . . . . Machines Disabled . | . . . . . . . . . . . Actions | -11 -10 -10 -10 -9 -8 -7 -7 -7 -6 -6 --------- Run | Yrd Mat Min Exi Min Mat Fac Low Low Fac Ext Total 3135 | 23 97 87 354 362 664 109 432 192 235 580 Wait 115 | . . . . 1 58 . 3 3 5 45 Move 2675 | 17 89 87 348 329 492 90 381 187 216 439 Hop . | . . . . . . . . . . . Pick Up 63 | 2 5 . 4 5 25 7 4 . 3 8 Fast Attach 7 | 1 . . . . 2 . . . . 4 Attach 22 | . . . . . 7 4 . . 2 9 Detach 2 | . . . . . 1 1 . . . . Swap 37 | . 1 . . 1 14 3 8 . 1 9 Drop 49 | . 2 . 2 6 14 4 9 . 2 10 Fire 81 | 3 . . . 19 41 . 7 2 6 3 Melee 43 | . . . . . 10 . 6 . . 27 Ram . | . . . . . . . . . . . Kick 1 | . . . . 1 . . . . . . Crush . | . . . . . . . . . . . Escape Stasis . | . . . . . . . . . . . Rewire 40 | . . . . . . . 14 . . 26 Trap . | . . . . . . . . . . . Miscellaneous . | . . . . . . . . . . . Route ------- -11/Scrapyard -10/Materials -10/Mines -10/Exiles -9/Mines -8/Materials -7/Factory -7/Lower Caves -7/Lower Caves (discovered 2 exits: *Fac / Dat) -6/Factory -6/Extension History --------- Turn | Location | Event 1 | -11/Scrapyard | Discovered new exit (range 2) 33 | -11/Scrapyard | Entered Materials 114 | -10/Materials | Discovered new exit (range 8) 195 | -10/Materials | Entered Mines 310 | -10/Mines | Build established: Mutant 351 | -10/Mines | Deemed a non-threat by the Exiles lab entrance 353 | -10/Mines | Discovered new exit (range 5) 361 | -10/Mines | Entered Exiles 407 | -10/Exiles | Met 8R-AWN 439 | -10/Exiles | Met EX-HEX 500 | -10/Exiles | Met EX-BIN 523 | -10/Exiles | Aligned with FarCom system 525 | -10/Exiles | Given EX-Vault access code 570 | -10/Exiles | Opened EX-Vault 578 | -10/Exiles | Found Longsword +1 617 | -10/Exiles | Warned to stay clear of 0b10 Research branches 672 | -10/Exiles | Met EX-DEC 736 | -10/Exiles | Visited The Gauntlet 1001 | -10/Exiles | Discovered new exit (range 14) 1028 | -10/Exiles | Left Exiles lab with Longsword +1 1028 | -10/Exiles | Entered Mines 1029 | -9/Mines | Assembled infested the area 1032 | -9/Mines | Met a Derelict bent on vengeance 1034 | -9/Mines | Assisted by a Guerilla fighting off Assembled 1162 | -9/Mines | Learned location of Storage (-7) 1167 | -9/Mines | Learned Materials stockpile data 1290 | -9/Mines | Learned location of Zion (-6) 1496 | -9/Mines | Discovered new exit (range 10) 1507 | -9/Mines | Entered Materials 1507 | -8/Materials | Evolved 4 slots: Propulsion x2, Utility x2 2105 | -8/Materials | Build established: Scavenger-Mutant 2190 | -8/Materials | Repaired Wheel 2259 | -8/Materials | Central database locked down 2447 | -8/Materials | Discovered new exit (range 4) 2454 | -8/Materials | Entered Factory 2454 | -7/Factory | Evolved 2 slots: Utility x2 2480 | -7/Factory | Discovered new exit (range 12) 2607 | -7/Factory | Entered Lower Caves 2689 | -7/Lower Caves | Attacked by a delusional Derelict stockpiling Unaware 2789 | -7/Lower Caves | Found DCF Scrap (12 items) 2858 | -7/Lower Caves | Learned Factory emergency access door positions 3123 | -7/Lower Caves | Encountered a Warlord checkpoint 3143 | -7/Lower Caves | Discovered new exit (range 19) 3168 | -7/Lower Caves | Entered another Lower Caves area 3168 | -7/Lower Caves | Accompanied by 4 allies 3169 | -7/Lower Caves | Encountered a Warlord checkpoint 3170 | -7/Lower Caves | Attracted the attention of an 0b10 checkpoint 3174 | -7/Lower Caves | Discovered new exit (range 7) 3240 | -7/Lower Caves | Identified exit to Data Miner 3265 | -7/Lower Caves | Learned location of Extension (-6) 3332 | -7/Lower Caves | Spotted B-75 Beast 3417 | -7/Lower Caves | Entered Factory 3417 | -6/Factory | Accompanied by 4 allies 3417 | -6/Factory | Evolved 2 slots: Power x1, Propulsion x1 3706 | -6/Factory | Discovered new exit (range 12) 3724 | -6/Factory | Entered Extension 3724 | -6/Extension | Accompanied by 4 allies 3992 | -6/Extension | Rescued a captive Derelict 3997 | -6/Extension | Rescued a captive Derelict 4158 | -6/Extension | System corruption reached 10% 4574 | -6/Extension | Spotted B-75 Beast 4596 | -6/Extension | Allies destroyed B-75 Beast 4600 | -6/Extension | Spotted B-75 Beast 4623 | -6/Extension | Core integrity fell below 50% 4643 | -6/Extension | Core integrity fell below 20% 4643 | -6/Extension | Released all parts (7) 4645 | -6/Extension | Lost 5 allies 4649 | -6/Extension | Destroyed by B-75 Beast with Heavy Plasma Cannon Last Messages --------------- 04635_ Acquired 70 matter. 04636_ R-10 Processor knocked back. 04636_ ALERT: Construction progress impeded, dispatching reinforcements to local area. 04637_ G-50 Soldier heat short circuits Hvy. Laser. 04638_ U-05 Engineer destroyed. 04639_ Xenon Bombardment Thruster destroyed. 04639_ Knocked back. 04641_ U-05 Engineer builds a Wall. 04642_ Xenon Bombardment Thruster destroyed. 04643_ Destroyed Xenon Bombardment Thruster. 04643_ Released Cld. VTOL Module. 04643_ Released Longsword +1. 04643_ Released Mak. ECM Suite. 04643_ Released Adv. Visual Processing Unit. 04643_ Released Huge Storage Unit. 04643_ Released Imp. Melee Analysis Suite. 04643_ Released Cld. VTOL Module. 04646_ Machine disabled. 04646_ Destroyed Imp. Sensor Array. Map ----- +----------------------------------------------------+ | % #??????????????????????????????? | | % ^ #??????????????????????????????? | | ##### ^ #??????????????????????????????? | | #???? #??????????????????????????????? | | #????? #??????????????????????????????? | | ??????########### #??????????????????????????????? | | ?????????????????????????????????????????????????? | | ?????????????????????????????????????????????????? | | ?????????????????????????????????????????????????? | | ?????????????????????????????????????????????????? | | ?????????????????????????????????????????????????? | | ????????????????? ???????????????????????????????? | | ????????????????? ???????????????????????????????? | | ????????????????? ???????????????????????????????? | | ????????????????# ???????????????????????????????? | | ????????????????# #??????????????????????????????? | | ????????????????# #??????????????????????????????? | | ????????????????# #??????????????????????????????? | | ????????????????# #??????????#???????????????????? | | ????????????????# #?######?? #???????????????????? | | ??????????????### ### ## ###g###?????????????????? | | ??????????????#"" "" "" ""#?????????????????? | | ??????????????# " " " #?????????????????? | | ??????????????# *[ #?????????????????? | | ?????#????????# Y [%= #?????????????????? | | ###############% =w[ @ ##????????????????? | | % !!%!=%/ = ??????????? | | /%==%%!%=% =%[% ????????? | | !*%*]!! ! R ?????????? | | % % =]%=%[] R ?????????? | | % =!!=%*/[= BB ??????????? | | ###############!!] BB ########??????????? | | ??????????????#[[ #?????????????????? | | ??????????????# #?????????????????? | | ??????????????# #?????????????????? | | ??????????????# #?????????????????? | | ??????????????######T#"""#######?????????????????? | | ???????????????????###???????????????????????????? | | ?????????????????????????????????????????????????? | | | | | | | | | | | | | | | | | | | | | | | +----------------------------------------------------+ Best States ------------- Heat Dissipation 37 Energy Generation 29 Energy Capacity 455 Matter Stores 300 Matter Capacity 300 Sight Range 20 Terrain Scan Density 10 ECM Strength 2 Armor Coverage 300 Evasion (%) 55 Targeting Accuracy 13 Melee Accuracy 6 Recoil Reduction 5 Offensive Hacking 10 Item Schematics ----------------- Cld. Cesium-ion Thruster | -6/Factory | Scanalyzed Robot Schematics ------------------ None Fabricated ------------ Nothing Alien Tech Used ----------------- None Achievements -------------- None Challenges ------------ None Game ------ Seed BlastGlidesysBeacon Manual? 0 Play Time 01:22:06 Cumulative 148.8 hours Start 2024.12.16 @ 23:08:45 End 2024.12.17 @ 00:37:32 Sessions 1 Manual Loads 0 Difficulty Rogue Special Mode None Game No. 76 Rogue 76 Adventurer 0 Explorer 0 Win Type - Total 2 Types 2/0/0/0/0/0/0/0/0 Lore% 28 Gallery% 50 Achievement% 41 Wizard Run 0 Options --------- Layout 0 ASCII 0 Keyboard 0 Movement Numpad Keybinds 0 Fullscreen 1 Font 18/SmallcapsGlow Map View 76x50 Zoom Use 0% Tactical HUD 1 Map Filters NONE Filters NONE Steam 1 RUN: 3a679282-3a0c-4779-aa78-a2af4b1bbcd0